fUST/lending_fUST_20260608
["ID","MTS","AMOUNT","RATE_DAILY","PERIOD"]
[424418750,1780861840000,-1220.5,0.00019178,2]
[424418721,1780861840000,-1866.26,0.00019178,2]
[424418767,1780861840000,-500.0,0.00019178,2]
[424418724,1780861840000,-10000.0,0.00019178,2]
[424418722,1780861840000,-500.0,0.00019178,2]
[424418729,1780861840000,-500.0,0.00019178,2]
[424418731,1780861840000,-500.0,0.00019178,2]
[424418733,1780861840000,-500.0,0.00019178,2]
[424418732,1780861840000,-500.0,0.00019178,2]
[424418740,1780861840000,-500.0,0.00019178,2]
[424418738,1780861840000,-500.0,0.00019178,2]
[424418736,1780861840000,-932.24,0.00019178,2]
[424418746,1780861840000,-525.41,0.00019178,2]
[424418730,1780861840000,-500.0,0.00019178,2]
[424418734,1780861840000,-834.43,0.00019178,2]
[424418748,1780861840000,-596.19,0.00019178,2]
[424418723,1780861840000,-10000.0,0.00019178,2]
[424418744,1780861840000,-500.0,0.00019178,2]
[424418735,1780861840000,-377.974263,0.00019178,2]
[424418771,1780861840000,-500.0,0.00019178,2]
[424418752,1780861840000,-850.21,0.00019178,2]
[424418762,1780861840000,-572.03,0.00019178,2]
[424418758,1780861840000,-561.05,0.00019178,2]
[424418756,1780861840000,-589.03,0.00019178,2]
[424418754,1780861840000,-500.0,0.00019178,2]
[424418769,1780861840000,-500.0,0.00019178,2]
[424418764,1780861840000,-1275.53,0.00019178,2]
[424418773,1780861840000,-160.42545431,0.00019178,2]
[424418766,1780861840000,-500.0,0.00019178,2]
[424418759,1780861840000,-2303.94,0.00019178,2]
[424418742,1780861840000,-500.0,0.00019178,2]
[424418775,1780861840000,-776.48,0.00019178,2]
[424418874,1780861841000,-6164.59,0.00019178,2]
[424418869,1780861841000,-500.0,0.00019178,2]
[424418871,1780861841000,-500.0,0.00019178,2]
[424418863,1780861841000,-500.0,0.00019178,2]
[424418864,1780861841000,-500.0,0.00019178,2]
[424418867,1780861841000,-500.0,0.00019178,2]
[424418865,1780861841000,-500.0,0.00019178,2]
[424418862,1780861841000,-500.0,0.00019178,2]
[424418868,1780861841000,-3594.46,0.00019178,2]
[424418866,1780861841000,-1441.15,0.00019178,2]
[424418873,1780861841000,-1783.28,0.00019178,2]
[424418860,1780861841000,-500.0,0.00019178,2]
[424418861,1780861841000,-500.0,0.00019178,2]
[424418872,1780861841000,-300.0,0.00019178,2]
[424418870,1780861841000,-739.52,0.00019178,2]
[424418875,1780861841000,-4603.39,0.00019178,2]
[424418881,1780861841000,-500.0,0.00019178,2]
[424418882,1780861841000,-500.0,0.00019178,2]
[424418878,1780861841000,-500.0,0.00019178,2]
[424418879,1780861841000,-500.0,0.00019178,2]
[424418877,1780861841000,-500.0,0.00019178,2]
[424418880,1780861841000,-500.0,0.00019178,2]
[424418883,1780861841000,-500.0,0.00019178,2]
[424418893,1780861841000,-500.0,0.00019178,2]
[424418896,1780861841000,-333.62303483,0.00019178,2]
[424418892,1780861841000,-500.0,0.00019178,2]
[424418888,1780861841000,-648.43197926,0.00019178,2]
[424418885,1780861841000,-1000.0,0.00019178,2]
[424418858,1780861841000,-500.0,0.00019178,2]
[424418876,1780861841000,-500.0,0.00019178,2]
[424418859,1780861841000,-1027.17,0.00019178,2]
[424418825,1780861841000,-500.0,0.00019178,2]
[424418852,1780861841000,-500.0,0.00019178,2]
[424418886,1780861841000,-500.0,0.00019178,2]
[424418831,1780861841000,-500.0,0.00019178,2]
[424418829,1780861841000,-500.0,0.00019178,2]
[424418827,1780861841000,-500.0,0.00019178,2]
[424418826,1780861841000,-2425.69,0.00019178,2]
[424418830,1780861841000,-500.0,0.00019178,2]
[424418828,1780861841000,-4474.78,0.00019178,2]
[424418833,1780861841000,-1281.39,0.00019178,2]
[424418842,1780861841000,-393.44799205,0.00019178,2]
[424418841,1780861841000,-800.12,0.00019178,2]
[424418844,1780861841000,-500.0,0.00019178,2]
[424418843,1780861841000,-1082.8,0.00019178,2]
[424418834,1780861841000,-158.99193321,0.00019178,2]
[424418835,1780861841000,-542.83,0.00019178,2]
[424418832,1780861841000,-500.0,0.00019178,2]
[424418836,1780861841000,-8303.43,0.00019178,2]
[424418839,1780861841000,-608.93,0.00019178,2]
[424418851,1780861841000,-500.0,0.00019178,2]
[424418856,1780861841000,-500.0,0.00019178,2]
[424418857,1780861841000,-832.21,0.00019178,2]
[424418847,1780861841000,-500.0,0.00019178,2]
[424418854,1780861841000,-500.0,0.00019178,2]
[424418846,1780861841000,-1791.17,0.00019178,2]
[424418853,1780861841000,-677.34,0.00019178,2]
[424418849,1780861841000,-53669.53,0.00019178,2]
[424418855,1780861841000,-1369.49,0.00019178,2]
[424418848,1780861841000,-500.0,0.00019178,2]
[424418845,1780861841000,-500.0,0.00019178,2]
[424418840,1780861841000,-500.0,0.00019178,2]
[424418838,1780861841000,-500.0,0.00019178,2]
[424418837,1780861841000,-4029.31,0.00019178,2]
[424418850,1780861841000,-500.0,0.00019178,2]
[424418884,1780861841000,-575.09,0.00019178,2]
[424418923,1780861841000,-500.0,0.00019178,2]
[424418895,1780861841000,-6232.12,0.00019178,2]
[424418936,1780861841000,-12268.77,0.00019178,2]
[424418937,1780861841000,-500.0,0.00019178,2]
[424418927,1780861841000,-500.0,0.00019178,2]
[424418939,1780861841000,-500.0,0.00019178,2]
[424418929,1780861841000,-5171.82,0.00019178,2]
[424418932,1780861841000,-500.0,0.00019178,2]
[424418928,1780861841000,-500.0,0.00019178,2]
[424418926,1780861841000,-500.0,0.00019178,2]
[424418931,1780861841000,-502.02980742,0.00019178,2]
[424418933,1780861841000,-500.0,0.00019178,2]
[424418930,1780861841000,-500.0,0.00019178,2]
[424418934,1780861841000,-500.0,0.00019178,2]
[424418940,1780861841000,-2741.99,0.00019178,2]
[424418942,1780861841000,-500.0,0.00019178,2]
[424418938,1780861841000,-1024.64,0.00019178,2]
[424418943,1780861841000,-3081.55,0.00019178,2]
[424418947,1780861841000,-500.0,0.00019178,2]
[424418949,1780861841000,-1094.77,0.00019178,2]
[424418941,1780861841000,-9057.27,0.00019178,2]
[424418945,1780861841000,-500.0,0.00019178,2]
[424418952,1780861841000,-500.0,0.00019178,2]
[424418948,1780861841000,-500.0,0.00019178,2]
[424418946,1780861841000,-4563.56,0.00019178,2]
[424418951,1780861841000,-583.57,0.00019178,2]
[424418950,1780861841000,-500.0,0.00019178,2]
[424418955,1780861841000,-11432.12,0.00019178,2]
[424418957,1780861841000,-500.0,0.00019178,2]
[424418954,1780861841000,-699.64,0.00019178,2]
[424418953,1780861841000,-500.0,0.00019178,2]
[424418887,1780861841000,-500.0,0.00019178,2]
[424418944,1780861841000,-500.0,0.00019178,2]
[424418925,1780861841000,-555.24,0.00019178,2]
[424418956,1780861841000,-651.64,0.00019178,2]
[424418922,1780861841000,-544.02,0.00019178,2]
[424418894,1780861841000,-500.0,0.00019178,2]
[424418935,1780861841000,-500.0,0.00019178,2]
[424418891,1780861841000,-500.0,0.00019178,2]
[424418890,1780861841000,-224.86914852,0.00019178,2]
[424418898,1780861841000,-500.0,0.00019178,2]
[424418910,1780861841000,-500.0,0.00019178,2]
[424418909,1780861841000,-1146.23,0.00019178,2]
[424418899,1780861841000,-3240.68,0.00019178,2]
[424418911,1780861841000,-500.0,0.00019178,2]
[424418897,1780861841000,-538.92,0.00019178,2]
[424418908,1780861841000,-784.71,0.00019178,2]
[424418900,1780861841000,-500.0,0.00019178,2]
[424418903,1780861841000,-500.0,0.00019178,2]
[424418902,1780861841000,-1112.38,0.00019178,2]
[424418901,1780861841000,-500.0,0.00019178,2]
[424418889,1780861841000,-3331.73,0.00019178,2]
[424418904,1780861841000,-500.0,0.00019178,2]
[424418905,1780861841000,-500.0,0.00019178,2]
[424418916,1780861841000,-500.0,0.00019178,2]
[424418918,1780861841000,-500.0,0.00019178,2]
[424418919,1780861841000,-831.65,0.00019178,2]
[424418915,1780861841000,-500.0,0.00019178,2]
[424418917,1780861841000,-1629.92,0.00019178,2]
[424418924,1780861841000,-500.0,0.00019178,2]
[424418914,1780861841000,-500.0,0.00019178,2]
[424418913,1780861841000,-500.0,0.00019178,2]
[424418912,1780861841000,-500.0,0.00019178,2]
[424418906,1780861841000,-666.49,0.00019178,2]
[424418907,1780861841000,-500.0,0.00019178,2]
[424418921,1780861841000,-1046.43,0.00019178,2]
[424418920,1780861841000,-1726.95,0.00019178,2]
[424418999,1780861842000,-500.0,0.00019452,2]
[424419001,1780861842000,-577.26,0.00019452,2]
[424419000,1780861842000,-543.76,0.00019452,2]
[424418998,1780861842000,-500.0,0.00019452,2]
[424418986,1780861842000,-176.5136,0.00019452,2]
[424418996,1780861842000,-500.0,0.00019452,2]
[424418995,1780861842000,-969.45,0.00019452,2]
[424418991,1780861842000,-616.17,0.00019452,2]
[424418987,1780861842000,-1245.1587,0.00019452,2]
[424418989,1780861842000,-614.9736,0.00019452,2]
[424418997,1780861842000,-500.0,0.00019452,2]
[424419002,1780861842000,-500.0,0.00019452,2]
[424419014,1780861842000,-1865.17,0.00019452,2]
[424419005,1780861842000,-500.0,0.00019452,2]
[424419004,1780861842000,-500.0,0.00019452,2]
[424419011,1780861842000,-500.0,0.00019452,2]
[424419007,1780861842000,-500.0,0.00019452,2]
[424419006,1780861842000,-811.93,0.00019452,2]
[424419015,1780861842000,-668.31,0.00019452,2]
[424419010,1780861842000,-748.9,0.00019452,2]
[424419009,1780861842000,-500.0,0.00019452,2]
[424419008,1780861842000,-1090.4,0.00019452,2]
[424419012,1780861842000,-1008.52,0.00019452,2]
[424419013,1780861842000,-500.0,0.00019452,2]
[424419017,1780861842000,-500.0,0.00019452,2]
[424418983,1780861842000,-341.53183083,0.00019317,2]
[424419028,1780861842000,-662.73,0.00019452,2]
[424419003,1780861842000,-500.0,0.00019452,2]
[424418990,1780861842000,-538.24,0.00019452,2]
[424418973,1780861842000,-500.0,0.00019178,2]
[424418981,1780861842000,-321.85442624,0.00019317,2]
[424419016,1780861842000,-500.0,0.00019452,2]
[424418965,1780861842000,-5657.36,0.00019178,2]
[424418964,1780861842000,-500.0,0.00019178,2]
[424418958,1780861842000,-500.0,0.00019178,2]
[424418959,1780861842000,-1671.2,0.00019178,2]
[424418960,1780861842000,-500.0,0.00019178,2]
[424418963,1780861842000,-1032.97,0.00019178,2]
[424418961,1780861842000,-11860.97,0.00019178,2]
[424418962,1780861842000,-500.0,0.00019178,2]
[424418966,1780861842000,-686.48,0.00019178,2]
[424418967,1780861842000,-500.0,0.00019178,2]
[424418976,1780861842000,-500.0,0.00019178,2]
[424418978,1780861842000,-296.14,0.00019178,2]
[424418977,1780861842000,-500.0,0.00019178,2]
[424418969,1780861842000,-3371.02,0.00019178,2]
[424418968,1780861842000,-500.0,0.00019178,2]
[424418971,1780861842000,-500.0,0.00019178,2]
[424418974,1780861842000,-1177.97,0.00019178,2]
[424418980,1780861842000,-397.73815301,0.000192,2]
[424418972,1780861842000,-2832.38,0.00019178,2]
[424418970,1780861842000,-500.0,0.00019178,2]
[424418975,1780861842000,-557.48,0.00019178,2]
[424418979,1780861842000,-795.0,0.000192,2]
[424418982,1780861842000,-321.10661291,0.00019317,2]
[424418992,1780861842000,-1699.11,0.00019452,2]
[424418993,1780861842000,-500.0,0.00019452,2]
[424418985,1780861842000,-151.0,0.00019415,2]
[424418994,1780861842000,-500.0,0.00019452,2]
[424418984,1780861842000,-247.85939171,0.00019317,2]
[424418988,1780861842000,-542.5339,0.00019452,2]
[424419027,1780861842000,-500.0,0.00019452,2]
[424419053,1780861842000,-500.0,0.00019452,2]
[424419020,1780861842000,-500.0,0.00019452,2]
[424419055,1780861842000,-500.0,0.00019452,2]
[424419057,1780861842000,-500.0,0.00019452,2]
[424419065,1780861842000,-500.0,0.00019452,2]
[424419060,1780861842000,-1020.19,0.00019452,2]
[424419063,1780861842000,-1622.39,0.00019452,2]
[424419066,1780861842000,-500.0,0.00019452,2]
[424419018,1780861842000,-547.06,0.00019452,2]
[424419059,1780861842000,-987.3,0.00019452,2]
[424419058,1780861842000,-500.0,0.00019452,2]
[424419064,1780861842000,-500.0,0.00019452,2]
[424419061,1780861842000,-517.58,0.00019452,2]
[424419068,1780861842000,-1131.14,0.00019452,2]
[424419078,1780861842000,-500.0,0.00019452,2]
[424419054,1780861842000,-500.0,0.00019452,2]
[424419067,1780861842000,-563.54,0.00019452,2]
[424419069,1780861842000,-500.0,0.00019452,2]
[424419070,1780861842000,-677.43,0.00019452,2]
[424419074,1780861842000,-500.0,0.00019452,2]
[424419072,1780861842000,-1866.26,0.00019452,2]
[424419071,1780861842000,-575.19,0.00019452,2]
[424419076,1780861842000,-500.0,0.00019452,2]
[424419075,1780861842000,-500.0,0.00019452,2]
[424419073,1780861842000,-500.0,0.00019452,2]
[424419077,1780861842000,-500.0,0.00019452,2]
[424419081,1780861842000,-239.0393251,0.00019452,2]
[424419080,1780861842000,-932.24,0.00019452,2]
[424419082,1780861842000,-500.0,0.00019452,2]
[424419083,1780861842000,-500.0,0.00019452,2]
[424419079,1780861842000,-834.43,0.00019452,2]
[424419056,1780861842000,-3518.66,0.00019452,2]
[424419062,1780861842000,-1749.99,0.00019452,2]
[424419047,1780861842000,-205.67913527,0.00019452,2]
[424419025,1780861842000,-257.69433846,0.00019452,2]
[424419021,1780861842000,-500.0,0.00019452,2]
[424419019,1780861842000,-500.0,0.00019452,2]
[424419022,1780861842000,-500.0,0.00019452,2]
[424419024,1780861842000,-500.0,0.00019452,2]
[424419050,1780861842000,-500.0,0.00019452,2]
[424419026,1780861842000,-500.0,0.00019452,2]
[424419029,1780861842000,-500.0,0.00019452,2]
[424419030,1780861842000,-518.19433965,0.00019452,2]
[424419032,1780861842000,-702.66,0.00019452,2]
[424419031,1780861842000,-500.0,0.00019452,2]
[424419034,1780861842000,-1228.66,0.00019452,2]
[424419039,1780861842000,-801.09,0.00019452,2]
[424419036,1780861842000,-500.0,0.00019452,2]
[424419023,1780861842000,-500.0,0.00019452,2]
[424419033,1780861842000,-678.34,0.00019452,2]
[424419040,1780861842000,-1513.1,0.00019452,2]
[424419043,1780861842000,-500.0,0.00019452,2]
[424419049,1780861842000,-2150.57,0.00019452,2]
[424419048,1780861842000,-1074.94,0.00019452,2]
[424419046,1780861842000,-500.0,0.00019452,2]
[424419044,1780861842000,-521.77,0.00019452,2]
[424419051,1780861842000,-500.0,0.00019452,2]
[424419041,1780861842000,-1885.18,0.00019452,2]
[424419042,1780861842000,-931.48,0.00019452,2]
[424419052,1780861842000,-500.0,0.00019452,2]
[424419037,1780861842000,-528.64,0.00019452,2]
[424419035,1780861842000,-877.91,0.00019452,2]
[424419038,1780861842000,-500.0,0.00019452,2]
[424419045,1780861842000,-1715.46,0.00019452,2]
[424419088,1780861843000,-500.0,0.00019452,2]
[424419099,1780861843000,-776.48,0.00019452,2]
[424419100,1780861843000,-466.11770827,0.00019452,2]
[424419101,1780861843000,-659.43,0.00019452,2]
[424419106,1780861843000,-500.0,0.00019452,2]
[424419098,1780861843000,-500.0,0.00019452,2]
[424419096,1780861843000,-500.0,0.00019452,2]
[424419094,1780861843000,-500.0,0.00019452,2]
[424419092,1780861843000,-572.03,0.00019452,2]
[424419089,1780861843000,-589.03,0.00019452,2]
[424419093,1780861843000,-1275.53,0.00019452,2]
[424419086,1780861843000,-1220.5,0.00019452,2]
[424419087,1780861843000,-850.21,0.00019452,2]
[424419085,1780861843000,-596.19,0.00019452,2]
[424419090,1780861843000,-561.05,0.00019452,2]
[424419091,1780861843000,-2303.94,0.00019452,2]
[424419084,1780861843000,-525.41,0.00019452,2]
[424419104,1780861843000,-500.0,0.00019452,2]
[424419097,1780861843000,-500.0,0.00019452,2]
[424419102,1780861843000,-500.0,0.00019452,2]
[424419103,1780861843000,-500.0,0.00019452,2]
[424419126,1780861843000,-1221.81,0.00019452,2]
[424419125,1780861843000,-782.71,0.00019452,2]
[424419123,1780861843000,-500.0,0.00019452,2]
[424419122,1780861843000,-500.0,0.00019452,2]
[424419121,1780861843000,-500.0,0.00019178,2]
[424419117,1780861843000,-13611.92919453,0.00019452,2]
[424419118,1780861843000,-3251.87080547,0.00019452,2]
[424419124,1780861843000,-5078.37,0.00019452,2]
[424419116,1780861843000,-500.0,0.00019178,2]
[424419114,1780861843000,-211.34080547,0.00019452,2]
[424419111,1780861843000,-568.8,0.00019452,2]
[424419113,1780861843000,-500.0,0.00019452,2]
[424419109,1780861843000,-500.0,0.00019452,2]
[424419108,1780861843000,-500.0,0.00019452,2]
[424419107,1780861843000,-500.0,0.00019452,2]
[424419105,1780861843000,-954.25,0.00019452,2]
[424419115,1780861843000,-500.0,0.00019178,2]
[424419138,1780861844000,-400.84886318,0.00019452,2]
[424419137,1780861844000,-2425.69,0.00019452,2]
[424419133,1780861844000,-500.0,0.00019452,2]
[424419130,1780861844000,-2571.28,0.00019452,2]
[424419131,1780861844000,-703.74,0.00019452,2]
[424419129,1780861844000,-750.75,0.00019452,2]
[424419132,1780861844000,-500.0,0.00019452,2]
[424419127,1780861844000,-500.0,0.00019452,2]
[424419128,1780861844000,-815.28,0.00019452,2]
[424419136,1780861844000,-500.0,0.00019452,2]
[424419135,1780861844000,-1348.18,0.00019452,2]
[424419139,1780861844000,-500.0,0.00019452,2]
[424419134,1780861844000,-806.87,0.00019452,2]
[424419141,1780861844000,-500.0,0.00019452,2]
[424419140,1780861844000,-4474.78,0.00019452,2]
[424419146,1780861844000,-4029.31,0.00019452,2]
[424419156,1780861844000,-28003.09433207,0.00019452,2]
[424419153,1780861844000,-1791.17,0.00019452,2]
[424419155,1780861844000,-500.0,0.00019452,2]
[424419152,1780861844000,-1082.8,0.00019452,2]
[424419150,1780861844000,-800.12,0.00019452,2]
[424419151,1780861844000,-500.0,0.00019452,2]
[424419154,1780861844000,-500.0,0.00019452,2]
[424419147,1780861844000,-500.0,0.00019452,2]
[424419148,1780861844000,-608.93,0.00019452,2]
[424419144,1780861844000,-542.83,0.00019452,2]
[424419143,1780861844000,-1281.39,0.00019452,2]
[424419142,1780861844000,-500.0,0.00019452,2]
[424419157,1780861844000,-4209.9999995,0.00019452,2]
[424419149,1780861844000,-500.0,0.00019452,2]
[424419145,1780861844000,-8303.43,0.00019452,2]
[424419164,1780862549000,-500.0,0.0001604,2]
[424419165,1780862566000,-543.11802766,0.0001604,2]
[424419166,1780862583000,-500.0,0.0001604,2]
[424419169,1780862755000,-245.58577127,0.00015879,2]
[424419168,1780862755000,-300.0,0.00015878,2]
[424419178,1780862833000,-1125.0327982,0.0001572,2]
[424419179,1780862842000,-691.96560936,0.0001572,2]
[424419180,1780862843000,-749.55946425,0.0001572,2]
[424419181,1780862847000,-361.01982007,0.0001572,2]
[424419199,1780863031000,-234.28631712,0.00017599,2]
[424419198,1780863031000,-500.0,0.00017599,2]
[424419200,1780863031000,-500.0,0.00017599,2]
[424419189,1780863031000,-502.66701431,0.00015878,2]
[424419190,1780863031000,-500.0,0.00015878,2]
[424419187,1780863031000,-500.0,0.00015878,2]
[424419186,1780863031000,-254.41422873,0.00015878,2]
[424419183,1780863031000,-276.36,0.00015719,2]
[424419188,1780863031000,-500.0,0.00015878,2]
[424419184,1780863031000,-4723.64,0.00015719,2]
[424419194,1780863031000,-1086.25929629,0.000175,2]
[424419185,1780863031000,-500.0,0.00015878,2]
[424419196,1780863031000,-500.0,0.00017599,2]
[424419205,1780863031000,-400.0,0.00017599,2]
[424419192,1780863031000,-155.79724048,0.00016181,2]
[424419195,1780863031000,-160.0,0.00017507,2]
[424419208,1780863031000,-1086.25929629,0.00018,2]
[424419206,1780863031000,-1086.25929629,0.000176,2]
[424419203,1780863031000,-500.0,0.00017599,2]
[424419209,1780863031000,-152.0,0.00018133,7]
[424419207,1780863031000,-1086.25929629,0.000178,2]
[424419202,1780863031000,-500.0,0.00017599,2]
[424419201,1780863031000,-500.0,0.00017599,2]
[424419197,1780863031000,-500.0,0.00017599,2]
[424419191,1780863031000,-230.95963774,0.00015878,2]
[424419193,1780863031000,-237.58284486,0.00016535,2]
[424419204,1780863031000,-500.0,0.00017599,2]
[424419252,1780863032000,-661.4215705,0.00019124,2]
[424419248,1780863032000,-5129.18467902,0.00019078,2]
[424419242,1780863032000,-236.91,0.00018904,2]
[424419246,1780863032000,-800.0,0.0001905,2]
[424419240,1780863032000,-800.0,0.00018901,2]
[424419254,1780863032000,-800.0,0.00019132,2]
[424419244,1780863032000,-800.0,0.00019013,2]
[424419249,1780863032000,-381.94182325,0.000191,2]
[424419269,1780863032000,-500.0,0.00019178,2]
[424419271,1780863032000,-684.31,0.00019178,2]
[424419273,1780863032000,-500.0,0.00019178,2]
[424419259,1780863032000,-500.0,0.00019178,2]
[424419261,1780863032000,-500.0,0.00019178,2]
[424419257,1780863032000,-800.0,0.00019176,2]
[424419267,1780863032000,-370.96030883,0.00019178,2]
[424419263,1780863032000,-500.0,0.00019178,2]
[424419265,1780863032000,-500.0,0.00019178,2]
[424419250,1780863032000,-704.31747304,0.000191,2]
[424419255,1780863032000,-190.88231,0.00019141,2]
[424419224,1780863032000,-204.9190985,0.00018507,2]
[424419251,1780863032000,-151.0,0.00019109,2]
[424419275,1780863032000,-481.69529696,0.00019178,2]
[424419210,1780863032000,-1086.25929629,0.000182,2]
[424419213,1780863032000,-153.67027185,0.000184,2]
[424419211,1780863032000,-227.45208525,0.00018335,2]
[424419212,1780863032000,-1086.25929629,0.000184,2]
[424419214,1780863032000,-186.0,0.00018466,2]
[424419215,1780863032000,-446.888,0.00018466,2]
[424419230,1780863032000,-3631.0,0.00018573,2]
[424419222,1780863032000,-192.66396775,0.00018507,2]
[424419226,1780863032000,-151.0,0.00018561,2]
[424419228,1780863032000,-1414.0,0.00018573,2]
[424419218,1780863032000,-1086.25929629,0.000185,2]
[424419232,1780863032000,-236.91,0.0001863,2]
[424419220,1780863032000,-193.11265574,0.00018507,2]
[424419236,1780863032000,-1086.25929629,0.000187,2]
[424419234,1780863032000,-188.146,0.00018667,2]
[424419238,1780863032000,-1086.25929629,0.000189,2]
[424419247,1780863032000,-810.11848874,0.00019063,2]
[424419278,1780863032000,-1632.6,0.00019178,2]
[424419292,1780863032000,-500.0,0.00019178,2]
[424419276,1780863032000,-1064.4275,0.00019178,2]
[424419304,1780863032000,-1100.76,0.00019178,2]
[424419306,1780863032000,-1604.16,0.00019178,2]
[424419307,1780863032000,-1750.52,0.00019178,2]
[424419298,1780863032000,-500.0,0.00019178,2]
[424419301,1780863032000,-181.28285241,0.00019178,2]
[424419309,1780863032000,-500.0,0.00019178,2]
[424419314,1780863032000,-57.28378507,0.00019178,2]
[424419310,1780863032000,-298.88805861,0.00019178,2]
[424419316,1780863032000,-535.56,0.00019178,2]
[424419313,1780863032000,-500.0,0.00019178,2]
[424419317,1780863032000,-19.04600744,0.00019178,2]
[424419311,1780863032000,-500.0,0.00019178,2]
[424419315,1780863032000,-442.71621493,0.00019178,2]
[424419318,1780863032000,-480.95399256,0.00019178,2]
[424419319,1780863032000,-500.0,0.00019178,2]
[424419320,1780863032000,-97.13516886,0.00019178,2]
[424419281,1780863032000,-500.0,0.00019178,2]
[424419296,1780863032000,-500.0,0.00019178,2]
[424419300,1780863032000,-500.0,0.00019178,2]
[424419312,1780863032000,-500.0,0.00019178,2]
[424419302,1780863032000,-318.71714759,0.00019178,2]
[424419279,1780863032000,-500.0,0.00019178,2]
[424419305,1780863032000,-500.0,0.00019178,2]
[424419293,1780863032000,-500.0,0.00019178,2]
[424419283,1780863032000,-647.81863674,0.00019178,2]
[424419282,1780863032000,-500.0,0.00019178,2]
[424419284,1780863032000,-500.0,0.00019178,2]
[424419294,1780863032000,-500.0,0.00019178,2]
[424419285,1780863032000,-947.25,0.00019178,2]
[424419287,1780863032000,-500.0,0.00019178,2]
[424419295,1780863032000,-1159.84,0.00019178,2]
[424419290,1780863032000,-500.0,0.00019178,2]
[424419308,1780863032000,-690.52,0.00019178,2]
[424419289,1780863032000,-500.0,0.00019178,2]
[424419291,1780863032000,-1728.08,0.00019178,2]
[424419286,1780863032000,-570.39,0.00019178,2]
[424419297,1780863032000,-500.0,0.00019178,2]
[424419288,1780863032000,-500.0,0.00019178,2]
[424419299,1780863032000,-500.0,0.00019178,2]
[424419364,1780863038000,-1863.05,0.00019178,2]
[424419366,1780863038000,-500.0,0.00019178,2]
[424419369,1780863038000,-717.49,0.00019178,2]
[424419362,1780863038000,-500.0,0.00019178,2]
[424419361,1780863038000,-500.0,0.00019178,2]
[424419371,1780863038000,-500.0,0.00019178,2]
[424419370,1780863038000,-1235.83,0.00019178,2]
[424419360,1780863038000,-500.0,0.00019178,2]
[424419365,1780863038000,-500.0,0.00019178,2]
[424419352,1780863038000,-500.0,0.00019178,2]
[424419355,1780863038000,-500.0,0.00019178,2]
[424419359,1780863038000,-500.0,0.00019178,2]
[424419368,1780863038000,-500.0,0.00019178,2]
[424419378,1780863038000,-1641.91,0.00019178,2]
[424419373,1780863038000,-984.38,0.00019178,2]
[424419372,1780863038000,-2335.6,0.00019178,2]
[424419375,1780863038000,-1000.0,0.00019178,2]
[424419374,1780863038000,-500.0,0.00019178,2]
[424419376,1780863038000,-500.0,0.00019178,2]
[424419379,1780863038000,-500.0,0.00019178,2]
[424419377,1780863038000,-500.0,0.00019178,2]
[424419381,1780863038000,-551.12,0.00019178,2]
[424419380,1780863038000,-500.0,0.00019178,2]